bitfinex/quotes_SOLUSD_20251116
["timestamp","ask_amount","ask_price","bid_price","bid_amount"]
[1763301617440,0.2,139.63,139.58,22.6512]
[1763301617622,0.87,139.63,139.58,22.6512]
[1763301617821,0.87,139.63,139.59,0.24]
[1763301618036,0.87,139.63,139.59,3.10913172]
[1763301618237,0.87,139.63,139.6,7.16332378]
[1763301618646,0.87,139.63,139.6,25.07163323]
[1763301619740,0.2,139.63,139.61,0.24]
[1763301619945,0.2,139.63,139.62,22.6512]
[1763301620159,0.2,139.63,139.62,22.8912]
[1763301620332,0.2,139.63,139.62,30.05349766]
[1763301620514,0.2,139.63,139.62,32.92180643]
[1763301620947,0.2,139.63,139.62,42.71063412]
[1763301621947,1e-08,139.63,139.62,42.71063412]
[1763301622523,1e-08,139.63,139.62,32.68180643]
[1763301624258,1e-08,139.63,139.62,32.92180643]
[1763301624427,1e-08,139.63,139.62,42.71063412]
[1763301628336,1e-08,139.63,139.62,104.51063412]
[1763301633455,1e-08,139.63,139.62,217.52170158]
[1763301635330,1e-08,139.63,139.62,207.61063412]
[1763301638953,1e-08,139.63,139.62,104.51063412]
[1763301639345,0.67000001,139.63,139.62,42.47063412]
[1763301639547,1e-08,139.63,139.62,10.03060643]
[1763301639755,1e-08,139.63,139.62,32.68180643]
[1763301640067,0.67000001,139.63,139.62,32.68180643]
[1763301640361,1e-08,139.63,139.62,32.68180643]
[1763301644369,0.70000001,139.63,139.62,29.81349766]
[1763301644565,0.70000001,139.63,139.62,7.16229766]
[1763301644865,0.70000001,139.63,139.61,7.16259821]
[1763301645044,0.70000001,139.63,139.61,10.03111267]
[1763301646667,0.70000001,139.63,139.61,7.16259821]
[1763301650208,0.70000001,139.63,139.6,25.07163323]
[1763301652098,0.70000001,139.63,139.6,17.90830945]
[1763301653704,0.70000001,139.63,139.62,22.6512]
[1763301654285,0.70000001,139.63,139.62,29.81349766]
[1763301657285,1e-08,139.63,139.62,29.81349766]
[1763301660910,1e-08,139.63,139.62,39.60232535]
[1763301661089,1e-08,139.63,139.62,39.84232535]
[1763301661288,1e-08,139.63,139.62,39.60232535]
[1763301663609,0.70000001,139.63,139.62,22.6512]
[1763301663811,0.70000001,139.63,139.61,7.16263746]
[1763301666618,1e-08,139.63,139.61,7.16263746]
[1763301666805,1e-08,139.63,139.62,10.02882769]
[1763301668110,1e-08,139.63,139.62,17.19112535]
[1763301668291,1e-08,139.63,139.62,16.95112535]
[1763301669217,1e-08,139.63,139.62,7.16229766]
[1763301669218,0.70000001,139.63,139.62,7.16229766]
[1763301670320,0.70000001,139.63,139.61,7.16281068]
[1763301670896,1e-08,139.63,139.62,9.78882769]
[1763301671201,1e-08,139.63,139.62,10.02882769]
[1763301671416,1e-08,139.63,139.62,12.89672516]
[1763301671804,1e-08,139.63,139.62,35.54792516]
[1763301672013,1e-08,139.63,139.62,12.89672516]
[1763301672412,1e-08,139.63,139.62,20.05902282]
[1763301672726,1e-08,139.63,139.62,42.71022282]
[1763301672908,1e-08,139.63,139.62,20.05902282]
[1763301675820,0.2,139.68,139.66,9.78882769]
[1763301676023,0.2,139.7,139.69,32.44002769]
[1763301676607,0.2,139.7,139.69,39.59873625]
[1763301677326,0.2,139.7,139.69,61.30682708]
[1763301678924,0.88,139.7,139.69,51.51799939]
[1763301679524,0.2,139.7,139.69,51.51799939]
[1763301681305,0.88,139.7,139.69,51.51799939]
[1763301684742,0.2,139.7,139.69,61.30682708]
[1763301685417,1e-08,139.7,139.69,123.10682708]
[1763301685734,1e-08,139.7,139.69,125.97328592]
[1763301686109,1e-08,139.7,139.69,126.21328592]
[1763301686309,1e-08,139.73,139.72,22.6512]
[1763301686621,1e-08,139.75,139.74,7.15614713]
[1763301686821,1e-08,139.76,139.75,32.44002769]
[1763301687029,0.68,139.79,139.75,32.68002769]
[1763301687324,0.68,139.79,139.75,32.44002769]
[1763301687637,0.68,139.79,139.75,35.30525458]
[1763301688203,0.68,139.79,139.75,22.6512]
[1763301688933,0.68,139.79,139.76,7.15512306]
[1763301689107,0.68,139.79,139.72,17.89279924]
[1763301689307,7.83361091,139.79,139.73,7.15646577]
[1763301689731,0.68,139.78,139.73,7.15646577]
[1763301690113,0.68,139.78,139.73,47.69931394]
[1763301693133,7.8342294,139.78,139.73,29.80766577]
[1763301693512,0.68,139.77,139.73,29.80766577]
[1763301694911,0.68,139.77,139.73,47.69931394]
[1763301698624,0.68,139.77,139.73,7.15646577]
[1763301700217,7.83468176,139.77,139.71,29.80839522]
[1763301700419,7.83468176,139.77,139.71,7.15719522]
[1763301700632,0.68,139.76,139.69,25.05466796]
[1763301701627,7.15563506,139.75,139.69,25.05466796]
[1763301702117,0.68,139.74,139.69,25.05466796]
[1763301703538,0.68,139.74,139.69,7.15870856]
[1763301704427,0.68,139.74,139.69,25.05547998]
[1763301705746,0.72,139.76,139.71,22.6512]
[1763301706554,0.72,139.76,139.73,7.15665927]
[1763301708750,0.72,139.76,139.72,25.04903699]
[1763301718961,0.72,139.76,139.72,25.28903699]
[1763301719264,0.72,139.79,139.74,22.6512]
[1763301719477,0.72,139.78,139.74,22.8912]
[1763301719967,0.92,139.8,139.75,10.02882769]
[1763301720357,0.72,139.79,139.75,10.02882769]
[1763301720970,0.72,139.79,139.76,25.04293073]
[1763301721471,0.72,139.79,139.76,7.15512306]
[1763301722887,0.72,139.79,139.76,25.04293073]
[1763301723087,0.72,139.79,139.76,17.88780767]
[1763301726678,0.72,139.79,139.76,18.12780767]
[1763301727492,0.2,139.8,139.77,10.02882769]
[1763301728202,0.2,139.8,139.79,9.78882769]
[1763301730079,0.2,139.8,139.79,10.02882769]
[1763301730399,0.2,139.8,139.79,7.15358752]
[1763301732693,1e-08,139.8,139.79,7.39358752]
[1763301733189,1e-08,139.8,139.79,39.83361521]
[1763301733781,1e-08,139.8,139.79,42.69781627]
[1763301734306,1e-08,139.8,139.79,20.04661627]
[1763301738598,1e-08,139.8,139.79,81.84661627]
[1763301741684,1e-08,139.8,139.79,91.75768373]
[1763301744696,0.88,139.86,139.83,32.44002769]
[1763301744697,1e-08,139.86,139.83,32.44002769]
[1763301745002,1e-08,139.86,139.83,94.24002769]
[1763301745193,1e-08,139.86,139.83,94.48002769]
[1763301745397,1e-08,139.86,139.85,32.44002769]
[1763301746593,1e-08,139.86,139.85,39.5905461]
[1763301747812,0.68000001,139.86,139.85,39.5905461]
[1763301748182,1e-08,139.86,139.85,39.5905461]
[1763301751187,0.2,139.91,139.88,22.6512]
[1763301751389,0.68,139.9,139.88,22.6512]
[1763301752205,0.68,139.9,139.88,21.07588489]
[1763301752510,0.68,139.9,139.85,34.81564213]
[1763301752808,0.68,139.9,139.85,16.9393461]
[1763301754409,0.68,139.9,139.85,56.11702124]
[1763301756034,0.68,139.9,139.89,9.78882769]
[1763301756216,0.68,139.9,139.88,22.6512]
[1763301756718,0.68,139.9,139.87,9.78882769]
[1763301757621,0.68,139.9,139.88,7.14898484]
[1763301757917,0.68,139.9,139.85,21.30137911]
[1763301758106,0.68,139.9,139.85,16.9393461]
[1763301758298,0.68,139.9,139.85,34.81564213]
[1763301759195,7.82799898,139.9,139.85,25.02681444]
[1763301759520,7.82799898,139.9,139.85,7.15051841]
[1763301759706,0.68,139.89,139.85,7.15051841]
[1763301763714,0.68,139.89,139.85,25.02681444]
[1763301768937,0.68,139.89,139.86,9.78882769]
[1763301769115,0.68,139.89,139.86,32.44002769]
[1763301770629,0.68,139.89,139.87,7.14949596]
[1763301771220,0.2,139.91,139.88,9.78882769]
[1763301771431,0.2,139.91,139.86,29.80118677]
[1763301771432,0.71,139.9,139.86,29.80118677]
[1763301771634,0.71,139.9,139.85,9.78882769]
[1763301771809,0.71,139.9,139.83,2.86358592]
[1763301772006,0.71,139.9,139.82,22.6512]
[1763301772733,7.1484738,139.89,139.83,7.15154115]
[1763301773237,0.71,139.88,139.83,25.03039404]
[1763301773726,0.71,139.88,139.83,7.15154115]
[1763301774933,0.71,139.88,139.83,25.03039404]
[1763301775738,0.71,139.88,139.84,10.02882769]
[1763301775941,0.71,139.88,139.84,9.78882769]
[1763301776715,0.71,139.88,139.84,12.65241361]
[1763301776914,0.71,139.88,139.85,25.02681444]
[1763301779849,0.71,139.88,139.86,9.78882769]
[1763301781534,0.71,139.88,139.85,25.02681444]
[1763301782825,0.71,139.88,139.85,7.15051841]
[1763301784347,0.71,139.88,139.85,25.02681444]
[1763301784943,0.71,139.88,139.84,7.15088763]
[1763301785239,0.71,139.88,139.84,25.028462]
[1763301787334,0.71,139.88,139.85,9.78882769]
[1763301789147,0.71,139.88,139.86,7.15000715]
[1763301789323,0.71,139.88,139.85,7.15011799]
[1763301791855,0.71,139.88,139.84,25.02860411]
[1763301792864,0.71,139.88,139.84,7.15102974]
[1763301793435,7.85908812,139.88,139.84,7.15102974]
[1763301793852,7.80967795,139.87,139.81,22.6512]
[1763301794359,0.66,139.86,139.81,44.28271705]
[1763301794841,7.81010974,139.86,139.82,7.15205263]
[1763301795156,0.66,139.86,139.82,7.15205263]
[1763301795350,0.72,139.85,139.82,7.15205263]
[1763301796856,0.72,139.85,139.82,25.03218422]
[1763301802269,0.72,139.86,139.82,25.27218422]
[1763301802462,0.72,139.86,139.83,9.78882769]
[1763301803371,0.72,139.86,139.84,7.15102974]
[1763301807374,0.72,139.86,139.83,27.66670231]
[1763301808268,0.72,139.86,139.83,17.87787462]
[1763301808469,0.72,139.86,139.84,7.15102974]
[1763301808653,0.72,139.86,139.82,16.94088032]
[1763301810573,0.72,139.86,139.82,34.82101191]
[1763301814578,0.72,139.86,139.82,35.06101191]
[1763301819181,0.72,139.9,139.85,22.6512]
[1763301819984,0.2,139.91,139.86,32.68002769]
[1763301820361,1e-08,139.91,139.9,22.6512]
[1763301820564,1e-08,139.91,139.9,32.68002769]
[1763301820977,1e-08,139.91,139.9,42.69014214]
[1763301821167,1e-08,139.91,139.9,42.45014214]
[1763301821369,1e-08,139.91,139.9,42.69014214]
[1763301823976,1e-08,139.92,139.91,10.02882769]
[1763301824176,1e-08,139.93,139.91,10.02882769]
[1763301824380,1e-08,139.93,139.92,32.68002769]
[1763301825176,1e-08,139.93,139.92,39.82696879]
[1763301830597,1e-08,139.93,139.92,42.68809678]
[1763301831277,1e-08,139.93,139.92,50.29174904]
[1763301834083,1e-08,139.93,139.92,59.96737206]
[1763301834499,0.7,139.99,139.92,59.96737206]
[1763301834500,0.7,139.99,139.98,9.78882769]
[1763301835095,0.7,139.99,139.98,12.64954644]
[1763301835724,0.2,140.0,139.98,12.64954644]
[1763301836607,0.2,140.0,139.99,16.93219507]
[1763301838301,0.9,140.0,139.99,16.93219507]
[1763301839397,0.2,140.0,139.99,16.93219507]
[1763301840302,0.9,140.0,139.99,16.93219507]
[1763301841315,0.9,140.0,139.99,9.78882769]
[1763301841509,0.9,140.0,139.99,16.93219507]
[1763301842107,0.2,140.0,139.99,16.93219507]
[1763301842306,0.9,140.0,139.99,16.93219507]
[1763301843045,0.9,140.0,139.99,7.14336738]
[1763301843242,0.9,140.0,139.99,16.93219507]
[1763301843547,0.9,140.0,139.99,19.79291382]
[1763301844824,0.9,140.0,139.99,16.93219507]
[1763301845143,0.9,140.0,139.99,7.14336738]
[1763301846251,0.9,140.0,139.99,16.93219507]
[1763301848029,0.9,140.0,139.99,19.79291382]
[1763301850752,0.9,140.0,139.99,16.93219507]
[1763301851747,0.9,140.0,139.99,7.14336738]
[1763301860783,0.2,140.0,139.99,16.93219507]
[1763301860975,0.91,140.0,139.99,16.93219507]
[1763301865158,0.91,140.0,139.99,7.14336738]
[1763301866657,0.91,140.0,139.98,7.14384925]
[1763301866863,0.71,139.99,139.98,7.14384925]
[1763301867161,0.91,140.0,139.99,9.78882769]
[1763301867483,0.2,140.0,139.99,9.78882769]
[1763301867886,0.2,140.03,140.02,32.44002769]
[1763301868200,0.2,140.03,140.02,32.68002769]
[1763301868359,0.2,140.04,140.02,32.68002769]
[1763301868695,0.2,140.04,140.03,10.02882769]
[1763301868696,1e-08,140.04,140.03,10.02882769]
[1763301868878,1e-08,140.04,140.03,17.17015454]
[1763301870671,1e-08,140.04,140.03,38.1420437]
[1763301873794,0.91,140.14,140.11,9.78882769]
[1763301874180,0.2,140.14,140.11,10.02882769]
[1763301874378,0.2,140.14,140.13,32.44002769]
[1763301874578,0.2,140.14,140.12,17.83157742]
[1763301874794,0.2,140.14,140.13,9.78882769]
[1763301875167,0.2,140.14,140.13,16.92505833]
[1763301875168,0.91,140.14,140.13,16.92505833]
[1763301875369,0.91,140.14,140.13,9.78882769]
[1763301875800,0.91,140.14,140.11,39.57723292]
[1763301875994,0.71,140.13,140.12,9.78882769]
[1763301876302,0.2,140.14,140.12,9.78882769]
[1763301876494,0.71,140.13,140.12,9.78882769]
[1763301876800,0.71,140.13,140.11,39.57723292]
[1763301876988,0.71,140.13,140.11,29.78840523]
[1763301877186,0.71,140.13,140.11,22.6512]
[1763301877702,0.71,140.13,140.1,7.13770672]
[1763301877901,0.71,140.13,140.09,46.71307849]
[1763301878082,0.71,140.13,140.09,24.06187849]
[1763301878277,0.71,140.13,140.09,16.92708811]
[1763301878599,0.71,140.13,140.09,34.76211448]
[1763301879683,0.71,140.13,140.09,27.62385406]
[1763301879890,0.71,140.13,140.09,9.78882769]
[1763301880572,0.71,140.13,140.09,16.92706311]
[1763301880792,7.84624987,140.13,140.09,9.78882769]
[1763301880995,7.84624987,140.13,140.07,22.6512]
[1763301881182,0.71,140.12,140.08,9.78882769]
[1763301881774,0.71,140.12,140.08,16.92752425]
[1763301882582,0.71,140.12,140.08,9.78882769]
[1763301882803,0.71,140.12,140.08,16.92752419]
[1763301883309,0.71,140.12,140.08,16.92748956]
[1763301885502,7.84687593,140.12,140.08,9.78882769]
[1763301885895,0.67,140.11,140.08,9.78882769]
[1763301889416,0.67,140.11,140.07,9.78882769]
[1763301890316,7.80738207,140.11,140.07,9.78882769]
[1763301890917,0.67,140.1,140.07,9.78882769]
[1763301893425,7.80777715,140.1,140.05,28.58476921]
[1763301893626,0.67,140.09,140.06,9.78882769]
[1763301894701,0.67,140.09,140.05,9.78882769]
[1763301896626,7.80834286,140.09,140.05,9.78882769]
[1763301897029,0.67,140.08,140.05,9.78882769]
[1763301899812,7.80878123,140.08,140.03,45.95575959]
[1763301900007,7.80878123,140.08,140.04,9.78882769]
[1763301900206,0.67,140.07,140.03,20.97188916]
[1763301900426,0.67,140.07,140.04,9.78882769]
[1763301900631,0.67,140.07,140.03,7.14124626]
[1763301900819,0.67,140.07,140.03,16.93007395]
[1763301901616,7.80935296,140.07,140.02,21.44925463]
[1763301901837,7.80935296,140.07,139.99,7.14302911]
[1763301902022,0.67,140.06,140.0,9.78882769]
[1763301902633,0.67,140.06,139.99,7.14302911]
[1763301902813,0.67,140.06,140.0,9.78882769]
[1763301903335,7.14030703,140.05,140.0,9.78882769]
[1763301904236,0.67,140.04,140.0,9.78882769]
[1763301905837,0.67,140.04,140.0,16.93154459]
[1763301906708,0.67,140.05,140.01,0.24]
[1763301906909,0.67,140.05,140.02,9.78882769]
[1763301907432,0.67,140.05,140.03,7.14132685]
[1763301908229,0.67,140.05,140.02,16.93064463]
[1763301909520,7.13675554,140.12,140.06,9.78882769]
[1763301909726,0.67,140.1,140.06,9.78882769]
[1763301911532,0.67,140.1,140.06,16.92845495]
[1763301911736,0.67,140.1,140.06,9.78882769]
[1763301912225,0.67,140.1,140.05,51.23752979]
[1763301912407,0.67,140.1,140.05,29.79134185]
[1763301913333,0.67,140.1,140.05,30.03134185]
[1763301913525,0.67,140.1,140.06,9.78882769]
[1763301915439,0.67,140.1,140.06,16.92843588]
[1763301915833,0.67,140.1,140.06,9.78882769]
[1763301916324,0.67,140.1,140.06,16.92860476]
[1763301919348,0.67,140.1,140.06,9.78882769]
[1763301919646,0.67,140.1,140.06,16.92857606]
[1763301921344,7.80791198,140.1,140.06,9.78882769]
[1763301921538,0.7,140.09,140.05,9.78882769]
[1763301922647,7.83832044,140.09,140.04,24.98199728]
[1763301922947,7.83832044,140.09,140.04,9.78882769]
[1763301923151,7.83832044,140.09,140.03,7.14117567]
[1763301923152,0.7,140.08,140.03,7.14117567]
[1763301924048,7.83917273,140.08,140.03,7.14117567]
[1763301924558,0.7,140.07,140.03,7.14117567]
[1763301925055,0.7,140.07,140.02,9.78882769]
[1763301926430,0.7,140.07,140.02,7.14142394]
[1763301926752,0.7,140.07,140.01,17.17103489]
[1763301927135,0.7,140.07,140.01,16.93103489]
[1763301927336,7.83928865,140.07,140.01,9.78882769]
[1763301927532,7.83928865,140.07,140.01,16.93104225]
[1763301927853,0.7,140.06,140.01,16.93104225]
[1763301928463,7.83996561,140.06,140.01,16.93104225]
[1763301929060,0.7,140.06,140.01,16.93104225]
[1763301929266,0.7,140.05,140.01,17.17104225]
[1763301929470,0.7,140.05,140.01,16.93104225]
[1763301930766,0.7,140.08,140.02,0.24]
[1763301931732,0.7,140.08,140.04,9.78882769]
[1763301932355,7.83885821,140.08,140.04,9.78882769]
[1763301932769,0.7,140.07,140.04,9.78882769]
[1763301933586,0.7,140.07,140.02,16.93015454]
[1763301933862,7.13979722,140.06,140.01,9.78882769]
[1763301934073,7.13979722,140.06,140.0,29.79361682]
[1763301934368,7.13979722,140.06,140.0,16.93124451]
[1763301934369,0.7,140.05,140.0,16.93124451]
[1763301934871,0.7,140.05,140.0,9.78882769]
[1763301935057,0.7,140.05,139.99,9.78882769]
[1763301935382,0.7,140.05,139.98,9.78882769]
[1763301935962,7.1408169,140.04,139.98,9.78882769]
[1763301936454,0.7,140.03,139.98,9.78882769]
[1763301936655,0.7,140.03,139.98,16.93261063]
[1763301937546,0.7,140.03,139.98,9.78882769]
[1763301938365,7.84149236,140.03,139.98,16.93255053]
[1763301938768,0.7,140.02,139.98,9.78882769]
[1763301938969,0.7,140.02,139.96,9.78882769]
[1763301940875,7.84209746,140.02,139.97,7.14438808]
[1763301941572,0.7,140.01,139.97,7.14438808]
[1763301941769,22.6512,140.05,139.97,7.14438808]
[1763301941975,35.67137816,140.17,140.0,9.78882769]
[1763301941976,0.7,140.04,140.0,9.78882769]
[1763301943176,7.84083156,140.04,139.99,28.59863118]
[1763301943558,0.71,140.03,139.99,7.14324052]
[1763301947892,7.85141575,140.03,139.98,21.45692522]
[1763301948077,7.85141575,140.03,139.98,9.78882769]
[1763301948273,0.71,140.02,139.98,9.78882769]
[1763301948890,0.71,140.02,139.96,51.25443965]
[1763301949106,0.71,140.02,139.96,29.79597966]
[1763301949476,7.14234697,140.01,139.96,29.79597966]
[1763301949797,7.14234697,140.01,139.96,9.78882769]
[1763301950091,0.71,140.0,139.96,9.78882769]
[1763301951197,7.8529632,140.0,139.96,7.14486721]
[1763301951567,0.71,139.99,139.96,7.14486721]
[1763301952508,0.71,139.99,139.95,16.93389444]
[1763301952669,0.71,139.99,139.94,7.14574943]
[1763301952867,0.71,139.99,139.92,27.64422073]
[1763301953070,0.71,139.99,139.92,39.58696879]
[1763301953288,7.14387769,139.98,139.92,39.58696879]
[1763301953473,25.00357193,139.98,139.92,39.58696879]
[1763301953799,0.71,139.97,139.92,39.58696879]
[1763301954187,0.71,139.97,139.89,21.56767326]
[1763301954384,0.71,139.97,139.89,7.24808153]
[1763301954566,0.71,139.97,139.89,29.89928153]
[1763301954891,0.71,139.97,139.9,9.78882769]
[1763301955492,23.3612,139.97,139.92,9.78882769]
[1763301955897,0.71,139.96,139.92,9.78882769]
[1763301956891,0.71,139.96,139.91,10.02882769]
[1763301957073,0.71,139.96,139.91,9.78882769]
[1763301957511,7.85491328,139.96,139.91,10.02882769]
[1763301957879,0.71,139.95,139.91,17.17615269]
[1763301959282,7.85554004,139.95,139.91,7.147325]
[1763301959776,0.71,139.94,139.89,22.7512]
[1763301959982,0.71,139.94,139.89,29.89947691]
[1763301960186,0.71,139.94,139.89,22.7512]
[1763301960409,0.71,139.94,139.89,0.1]
[1763301960980,22.6512,139.96,139.9,10.02882769]
[1763301961292,23.3612,139.96,139.91,7.14745193]
[1763301961489,0.71,139.95,139.91,7.14745193]
[1763301964611,17.86036653,139.98,139.92,10.02882769]
[1763301964612,0.71,139.98,139.92,10.02882769]
[1763301964911,0.71,139.98,139.94,9.78882769]
[1763301965111,0.71,140.0,139.94,9.78882769]
[1763301965311,0.71,140.0,139.96,9.78882769]
[1763301965887,7.85290901,140.0,139.95,7.14540907]
[1763301966323,0.71,139.99,139.95,7.14540907]
[1763301966486,0.71,139.99,139.96,9.78882769]
[1763301967301,7.85351169,139.99,139.93,32.44002769]
[1763301967506,7.85351169,139.99,139.92,9.78882769]
[1763301967717,0.71,139.98,139.92,9.78882769]
[1763301967890,0.71,139.98,139.91,16.93594374]
[1763301968090,0.71,139.99,139.93,22.6512]
[1763301968500,0.71,139.99,139.94,0.24]
[1763301968818,0.71,139.99,139.94,22.6512]
[1763301968997,0.71,139.99,139.95,9.78882769]
[1763301969390,0.71,139.99,139.95,16.93375122]
[1763301969790,7.85344256,139.99,139.93,25.01113862]
[1763301970010,7.85344256,139.99,139.93,16.93487803]
[1763301970217,0.71,139.98,139.93,16.93487803]
[1763301970403,0.71,139.98,139.93,7.14605034]
[1763301971013,0.71,139.98,139.92,16.935618]
[1763301971210,0.71,139.98,139.92,9.78882769]
[1763301971395,7.14540907,139.95,139.89,0.1]
[1763301971808,0.71,139.94,139.89,0.1]
[1763301973523,7.14643035,139.93,139.89,0.1]
[1763301973910,0.72,139.92,139.89,0.1]
[1763301975326,0.72,139.92,139.86,0.1]
[1763301975543,7.1484738,139.89,139.86,0.1]
[1763301975838,0.69,139.88,139.86,0.1]
[1763301977714,7.14949596,139.87,139.86,0.1]
[1763301977915,7.83915675,139.88,139.86,0.1]
[1763301978103,0.69,139.87,139.86,0.1]
[1763301979036,0.69,139.87,139.84,0.1]
[1763301979600,7.15000715,139.86,139.84,0.1]
[1763301979907,0.69,139.87,139.84,0.1]
[1763301979908,7.83964614,139.87,139.84,0.1]
[1763301980106,0.69,139.86,139.84,0.1]
[1763301980308,40.52012685,139.91,139.84,0.1]
[1763301980524,0.69,139.87,139.84,0.1]
[1763301982128,7.8395079,139.87,139.84,0.1]
[1763301982327,0.69,139.87,139.84,0.1]
[1763301982516,0.69,139.86,139.84,0.1]
[1763301983716,7.15051841,139.85,139.84,0.1]
[1763301984232,7.84051841,139.85,139.81,0.1]
[1763301984438,0.69,139.84,139.81,0.1]
[1763301985042,0.69,139.84,139.79,0.1]
[1763301985630,22.6512,139.82,139.79,0.1]
[1763301985829,7.15256419,139.81,139.79,0.1]
[1763301986134,7.84256419,139.81,139.79,0.1]
[1763301986332,7.84256419,139.81,139.71,0.1]
[1763301986333,0.69,139.8,139.71,0.1]
[1763301986535,22.6512,139.78,139.71,0.1]
[1763301987037,0.69,139.77,139.71,0.1]
[1763301987714,25.04293073,139.76,139.71,0.1]
[1763301988108,0.69,139.75,139.71,0.1]
[1763301989940,7.84572331,139.75,139.71,0.1]
[1763301990328,0.69,139.74,139.71,0.1]
[1763301990643,23.3412,139.79,139.71,0.76]
[1763301990938,0.69,139.78,139.71,0.76]
[1763301991741,7.15461114,139.77,139.71,0.1]
[1763301992037,25.041139,139.77,139.71,0.1]
[1763301992239,0.69,139.76,139.71,0.1]
[1763301993813,7.15563506,139.75,139.71,0.1]
[1763301994216,0.69,139.74,139.71,0.1]
[1763301995018,7.84664929,139.74,139.71,0.1]
[1763301995450,0.69,139.73,139.71,0.1]
[1763301997919,0.69,139.76,139.71,0.76]
[1763301998138,7.15409929,139.78,139.71,0.76]
[1763301998339,0.69,139.78,139.71,0.76]
[1763301998944,7.84422148,139.78,139.72,7.15717148]
[1763301999137,0.69,139.78,139.72,7.15717148]
[1763301999333,7.844199,139.78,139.72,25.71010019]
[1763301999647,0.69,139.78,139.72,25.71010019]
[1763302000253,0.69,139.78,139.73,9.78882769]
[1763302000421,7.84411872,139.78,139.73,9.78882769]
[1763302000618,0.69,139.78,139.73,10.44882769]
[1763302000824,0.69,139.77,139.73,10.44882769]
[1763302001050,0.69,139.77,139.73,17.60539097]
[1763302002331,7.84463278,139.77,139.73,9.78882769]
[1763302002532,7.84463278,139.77,139.71,0.1]
[1763302002740,23.3412,139.76,139.71,0.1]
[1763302003132,7.84563506,139.75,139.71,0.1]
[1763302003330,25.73472271,139.75,139.71,0.1]
[1763302003529,0.72,139.74,139.71,0.1]
[1763302005140,7.15665927,139.73,139.71,0.1]
[1763302005637,0.72,139.72,139.71,0.1]
[1763302007654,7.87717148,139.72,139.71,0.1]
[1763302012667,7.87717148,139.72,139.71,1e-08]
[1763302012850,17.66599917,139.72,139.71,1e-08]
[1763302013443,22.6512,139.69,139.68,0.1]
[1763302013866,23.3712,139.69,139.68,0.1]
[1763302014776,0.72,139.71,139.68,0.1]
[1763302015080,23.3712,139.71,139.68,0.1]
[1763302015271,30.52906794,139.71,139.68,0.1]
[1763302015450,0.72,139.71,139.68,0.1]
[1763302016961,7.87804546,139.71,139.68,0.1]
[1763302017160,7.15804546,139.71,139.68,0.1]
[1763302017357,0.72,139.7,139.68,0.1]
[1763302017848,7.15804546,139.71,139.68,0.1]
[1763302018377,7.87804546,139.71,139.68,0.1]
[1763302020572,7.15728946,139.72,139.68,0.79]
[1763302020881,7.87728946,139.72,139.68,0.79]
[1763302021051,104.2,139.75,139.69,32.44002769]
[1763302021250,0.72,139.79,139.71,9.78882769]
[1763302021487,18.60160175,139.81,139.73,9.78882769]
[1763302021664,41.25280175,139.81,139.73,9.78882769]
[1763302021864,41.25280175,139.81,139.74,0.69]
[1763302022062,0.72,139.81,139.74,0.69]
[1763302022263,0.72,139.83,139.75,9.78882769]
[1763302022455,0.72,139.84,139.76,7.15512306]
[1763302022651,0.72,139.83,139.77,0.69]
[1763302024061,23.3712,139.83,139.77,0.69]
[1763302024259,7.15205263,139.82,139.77,0.69]
[1763302024465,7.87205263,139.82,139.74,0.69]
[1763302024665,0.72,139.81,139.74,0.69]
[1763302026679,25.03576537,139.8,139.74,0.69]
[1763302027182,25.03576537,139.8,139.66,9.14117858]
[1763302027183,0.72,139.79,139.66,9.14117858]